bitfinex-derivatives/quotes_SOLF0:USTF0_20240925
["timestamp","ask_amount","ask_price","bid_price","bid_amount"]
[1727249038550,3.3437,149.53,149.51,1.3349]
[1727249040251,3.3435,149.54,149.52,8.23]
[1727249040458,8.23,149.59,149.53,8.23]
[1727249041161,3.343,149.56,149.53,8.23]
[1727249045059,8.23,149.6,149.54,8.23]
[1727249045264,76.09884467,149.87,149.58,8.23]
[1727249045265,13.08145257,149.64,149.58,8.23]
[1727249045456,1.0291843,149.63,149.58,8.23]
[1727249045855,9.2591843,149.63,149.58,8.23]
[1727249046054,3.3422,149.6,149.57,8.23]
[1727249046250,8.23,149.61,149.57,8.23]
[1727249046650,14.25366932,149.63,149.58,8.23]
[1727249046857,20.13,149.7,149.58,8.23]
[1727249046858,8.23,149.64,149.58,8.23]
[1727249047456,27.35426417,149.67,149.57,8.23]
[1727249047653,3.3422,149.6,149.57,8.23]
[1727249048956,3.3418,149.61,149.58,8.23]
[1727249049751,3.3416,149.62,149.58,8.23]
[1727249050653,3.3419,149.61,149.58,8.23]
[1727249051862,14.27289766,149.65,149.59,8.23]
[1727249052059,8.23,149.65,149.59,8.23]
[1727249052463,3.3415,149.63,149.59,8.23]
[1727249052758,8.23,149.64,149.58,8.23]
[1727249052965,2.5241,149.7,149.58,8.23]
[1727249052966,8.23,149.62,149.58,8.23]
[1727249053166,8.23,149.62,149.57,1.3591]
[1727249053566,8.23,149.61,149.57,1.3591]
[1727249053760,14.27289766,149.62,149.57,1.3591]
[1727249053963,8.23,149.61,149.57,1.3591]
[1727249054667,3.3423,149.59,149.57,1.3591]
[1727249055160,3.342,149.61,149.57,9.5891]
[1727249055361,8.23,149.62,149.57,9.5891]
[1727249056570,8.23,149.63,149.59,8.23]
[1727249057365,3.3418,149.62,149.59,8.23]
[1727249062167,3.3418,149.61,149.59,8.23]
[1727249062759,47.52976378,149.67,149.55,1.337]
[1727249062965,20.13,149.65,149.55,1.337]
[1727249063171,2.5015,149.64,149.55,1.337]
[1727249063359,8.23,149.58,149.55,1.337]
[1727249063565,3.3428,149.57,149.55,1.337]
[1727249065271,3.3429,149.56,149.55,1.337]
[1727249065565,3.3429,149.56,149.53,8.23]
[1727249065566,14.28758628,149.6,149.51,9.5526]
[1727249065871,8.23,149.56,149.51,9.5526]
[1727249066065,3.3433,149.55,149.51,9.5526]
[1727249066873,13.11758677,149.62,149.52,8.23]
[1727249066874,8.23,149.57,149.52,8.23]
[1727249067469,14.28758628,149.59,149.56,8.23]
[1727249067470,10.02258628,149.59,149.56,8.23]
[1727249067768,8.23,149.67,149.58,8.23]
[1727249068075,3.3411,149.65,149.62,8.23]
[1727249068467,33.25440274,149.73,149.61,8.23]
[1727249068776,3.3411,149.65,149.61,8.23]
[1727249068964,20.13,149.71,149.5,63.71237351]
[1727249069169,8.23,149.6,149.54,3.3432]
[1727249069372,8.23,149.6,149.55,8.23]
[1727249070281,3.3419,149.61,149.55,3.3431]
[1727249070470,3.3417,149.62,149.54,12.84]
[1727249071776,3.3417,149.62,149.56,3.3429]
[1727249076482,16.46580274,149.63,149.57,3.3427]
[1727249076682,14.2148,149.66,149.56,12.84]
[1727249076875,13.12695425,149.65,149.56,12.84]
[1727249077784,3.3413,149.64,149.58,3.3424]
[1727249078578,16.46805425,149.65,149.59,3.3422]
[1727249078985,3.3411,149.65,149.59,3.3422]
[1727249079590,2.6334,149.68,149.6,3.3419]
[1727249079885,29.49217505,149.68,149.6,3.3419]
[1727249080076,3.341,149.65,149.59,3.3422]
[1727249081886,2.6334,149.68,149.58,16.1825]
[1727249082080,12.84,149.66,149.58,16.1825]
[1727249082486,3.3412,149.64,149.58,16.1825]
[1727249083487,12.84,149.66,149.57,6.0896]
[1727249083687,12.84,149.66,149.57,2.7469]
[1727249083887,39.68532607,149.66,149.57,2.7469]
[1727249084091,12.84,149.66,149.57,2.7469]
[1727249084588,3.3415,149.63,149.57,6.0896]
[1727249084981,3.3416,149.62,149.57,6.0896]
[1727249086886,3.3418,149.61,149.57,6.0896]
[1727249087286,3.3418,149.61,149.57,2.7469]
[1727249087682,12.84,149.64,149.55,1.3319]
[1727249088079,3.3421,149.6,149.55,1.3319]
[1727249088483,12.84,149.64,149.56,16.1828]
[1727249088685,12.84,149.64,149.56,12.84]
[1727249088686,3.3417,149.62,149.56,12.84]
[1727249089090,12.84,149.66,149.58,3.3423]
[1727249089594,39.67537215,149.66,149.59,3.3422]
[1727249089789,12.84,149.66,149.59,3.3422]
[1727249089991,3.3413,149.64,149.59,3.3422]
[1727249090285,3.3413,149.64,149.61,8.22]
[1727249090881,3.3413,149.64,149.59,3.3422]
[1727249090882,3.3413,149.64,149.6,8.22]
[1727249091893,3.3415,149.63,149.6,8.22]
[1727249092085,3.3415,149.63,149.58,8.22]
[1727249093494,3.3415,149.63,149.58,11.5625]
[1727249094097,3.3415,149.63,149.59,8.22]
[1727249099998,3.3411,149.64,149.59,11.5621]
[1727249100197,8.22,149.65,149.59,11.5621]
[1727249100400,3.3414,149.63,149.59,8.22]
[1727249100700,3.3414,149.63,149.58,11.5624]
[1727249101701,3.3416,149.62,149.58,8.22]
[1727249104607,3.3416,149.62,149.58,11.5625]
[1727249106103,21.3328391,149.67,149.61,8.22]
[1727249106304,8.22,149.67,149.61,8.22]
[1727249106704,26.83495648,149.7,149.64,8.22]
[1727249106907,20.12,149.86,149.64,8.22]
[1727249106908,36.08494113,149.69,149.64,8.22]
[1727249107110,8.22,149.69,149.64,8.22]
[1727249107807,3.3406,149.67,149.64,8.22]
[1727249110109,3.3406,149.67,149.63,8.22]
[1727249111312,3.3407,149.66,149.63,8.22]
[1727249112706,3.3409,149.65,149.63,8.22]
[1727249113219,100.68614661,149.72,149.64,8.22]
[1727249113410,8.22,149.7,149.64,8.22]
[1727249113610,21.34809491,149.7,149.64,8.22]
[1727249114011,8.22,149.7,149.64,8.22]
[1727249115010,3.3404,149.68,149.64,8.22]
[1727249116005,3.3405,149.67,149.64,8.22]
[1727249120715,3.3405,149.67,149.63,8.22]
[1727249122024,3.3407,149.66,149.63,8.22]
[1727249128426,3.3411,149.64,149.56,1.335]
[1727249128619,3.3411,149.64,149.61,8.22]
[1727249130130,8.22,149.65,149.56,1.335]
[1727249130422,8.22,149.65,149.58,3.3423]
[1727249130623,8.22,149.65,149.6,8.22]
[1727249131131,3.3415,149.63,149.58,3.3423]
[1727249131322,8.22,149.65,149.59,8.22]
[1727249132029,1.3866,149.68,149.59,8.22]
[1727249132223,8.22,149.64,149.59,8.22]
[1727249132620,3.3417,149.62,149.59,8.22]
[1727249137329,3.3419,149.61,149.59,8.22]
[1727249137529,8.22,149.62,149.57,8.22]
[1727249138828,3.3422,149.6,149.57,8.22]
[1727249141243,8.22,149.61,149.57,8.22]
[1727249142233,3.3422,149.6,149.57,8.22]
[1727249143435,8.22,149.61,149.55,1.3319]
[1727249143661,8.22,149.6,149.55,1.3319]
[1727249144539,3.3425,149.58,149.55,1.3319]
[1727249145547,3.3427,149.57,149.55,1.3319]
[1727249146442,48.28287135,149.63,149.54,63.69302802]
[1727249146642,8.22,149.57,149.51,8.22]
[1727249147152,3.3435,149.54,149.51,8.22]
[1727249147348,8.22,149.56,149.51,8.22]
[1727249148845,29.58171086,149.62,149.49,4.0955]
[1727249148846,8.22,149.55,149.5,8.22]
[1727249149049,8.22,149.53,149.49,4.0955]
[1727249149451,11.5637,149.53,149.49,4.0955]
[1727249150554,8.22,149.52,149.49,1.3848]
[1727249151057,1.3442,149.57,149.49,1.3848]
[1727249151249,8.22,149.52,149.49,1.3848]
[1727249151748,11.564,149.52,149.49,1.3848]
[1727249152351,1.3442,149.57,149.5,8.22]
[1727249152551,8.22,149.56,149.5,8.22]
[1727249153446,8.22,149.54,149.5,8.22]
[1727249153652,11.5635,149.54,149.5,8.22]
[1727249155354,8.22,149.55,149.5,8.22]
[1727249155959,8.22,149.55,149.5,9.5554]
[1727249156348,11.5632,149.55,149.5,12.8996]
[1727249160759,1.3105,149.61,149.54,8.22]
[1727249161057,8.22,149.58,149.54,8.22]
[1727249161459,8.22,149.56,149.51,9.5684]
[1727249162358,3.3434,149.54,149.51,1.3484]
[1727249162553,3.3434,149.54,149.51,9.5684]
[1727249163953,3.3434,149.54,149.52,8.22]
[1727249165361,1.3105,149.61,149.52,8.22]
[1727249165663,8.22,149.57,149.52,8.22]
[1727249166558,3.3431,149.56,149.52,11.5637]
[1727249167363,8.22,149.57,149.52,8.22]
[1727249167364,3.3432,149.55,149.52,8.22]
[1727249168561,3.3432,149.55,149.51,9.5684]
[1727249168962,3.3434,149.54,149.51,9.5684]
[1727249169962,3.3434,149.54,149.5,4.6796]
[1727249170160,3.3432,149.55,149.51,11.564]
[1727249171460,3.343,149.56,149.52,3.3437]
[1727249171665,3.343,149.56,149.53,8.22]
[1727249172059,8.22,149.57,149.53,11.5635]
[1727249172060,11.5628,149.57,149.53,11.5635]
[1727249172465,8.22,149.57,149.53,11.5635]
[1727249173370,11.5628,149.57,149.53,11.5635]
[1727249175067,3.3424,149.59,149.54,11.5634]
[1727249175262,8.22,149.61,149.57,8.22]
[1727249175470,1.3263,149.64,149.5,2.6175]
[1727249175471,8.22,149.59,149.5,2.6175]
[1727249175670,3.3427,149.58,149.54,8.22]
[1727249177070,3.3427,149.58,149.5,2.6175]
[1727249177071,11.5627,149.57,149.52,11.5637]
[1727249177272,8.22,149.57,149.52,8.22]
[1727249177471,3.3431,149.56,149.52,8.22]
[1727249178475,3.3432,149.55,149.5,2.6175]
[1727249178675,3.3432,149.55,149.52,8.22]
[1727249179376,3.3434,149.54,149.52,8.22]
[1727249181367,3.3432,149.55,149.52,8.22]
[1727249182780,3.3434,149.54,149.52,8.22]
[1727249183177,8.22,149.57,149.52,11.5637]
[1727249183380,3.3431,149.56,149.52,11.5637]
[1727249183881,3.3431,149.56,149.53,11.5636]
[1727249188278,3.3428,149.57,149.55,8.22]
[1727249188479,8.22,149.59,149.55,8.22]
[1727249189076,3.3429,149.57,149.55,8.22]
[1727249189276,2.6443,149.64,149.55,8.22]
[1727249189477,8.22,149.59,149.55,8.22]
[1727249190481,3.3426,149.58,149.55,8.22]
[1727249190778,8.22,149.6,149.56,8.22]
[1727249190974,8.22,149.6,149.55,8.22]
[1727249191182,3.3424,149.59,149.55,8.22]
[1727249196975,3.3424,149.59,149.54,3.3432]
[1727249197176,3.3424,149.59,149.54,11.5632]
[1727249198587,3.3425,149.58,149.54,11.5632]
[1727249199286,8.22,149.6,149.54,8.22]
[1727249199478,8.22,149.59,149.54,8.22]
[1727249200791,3.3427,149.57,149.54,8.22]
[1727249201389,3.343,149.56,149.52,3.3437]
[1727249201588,8.22,149.57,149.52,8.22]
[1727249201986,8.22,149.56,149.49,63.71712133]
[1727249202186,8.22,149.54,149.49,8.22]
[1727249202784,3.3436,149.53,149.49,11.5643]
[1727249203688,3.3438,149.52,149.49,8.22]
[1727249205593,3.3441,149.51,149.49,8.22]
[1727249207491,3.3439,149.52,149.49,8.22]
[1727249208087,8.22,149.54,149.48,1.3362]
[1727249208395,8.22,149.54,149.49,8.22]
[1727249208594,3.3442,149.51,149.48,9.5562]
[1727249209696,8.22,149.5,149.43,1.3467]
[1727249209894,8.22,149.5,149.44,8.22]
[1727249210596,3.3446,149.49,149.45,11.5652]
[1727249210897,8.22,149.5,149.45,11.5652]
[1727249211897,3.3447,149.49,149.45,11.5652]
[1727249215606,3.3447,149.48,149.45,8.22]
[1727249218607,3.345,149.47,149.45,8.22]
[1727249219498,3.3448,149.48,149.45,8.22]
[1727249221197,3.3448,149.48,149.45,11.5653]
[1727249222405,2.6681,149.54,149.45,8.22]
[1727249222605,8.22,149.5,149.45,8.22]
[1727249223807,3.3445,149.49,149.46,3.3451]
[1727249224605,3.3445,149.49,149.45,11.5653]
[1727249225706,1.2873,149.54,149.48,8.22]
[1727249225900,9.5073,149.54,149.49,8.22]
[1727249226609,3.3439,149.52,149.48,8.22]
[1727249227607,11.5636,149.53,149.48,11.5645]
[1727249228708,3.3438,149.52,149.48,11.5645]
[1727249232912,11.5637,149.53,149.49,3.3444]
[1727249233209,11.5637,149.53,149.48,8.22]
[1727249233210,8.22,149.55,149.5,8.22]
[1727249233611,11.5632,149.55,149.5,11.5641]
[1727249233811,11.5632,149.55,149.5,8.22]
[1727249234013,8.22,149.55,149.5,8.22]
[1727249234209,8.22,149.55,149.51,3.3439]
[1727249234912,3.3431,149.56,149.52,8.22]
[1727249235719,11.5631,149.56,149.52,8.22]
[1727249238022,11.5631,149.56,149.51,3.3439]
[1727249238318,8.22,149.55,149.5,8.22]
[1727249238822,3.3435,149.54,149.5,8.22]
[1727249239525,3.3435,149.54,149.51,8.22]
[1727249241613,3.3436,149.53,149.51,8.22]
[1727249242021,8.22,149.56,149.43,82.9894]
[1727249242211,8.22,149.56,149.51,8.22]
[1727249243522,3.3435,149.54,149.5,3.3443]
[1727249243721,3.3435,149.54,149.51,8.22]
[1727249244721,8.22,149.55,149.43,2.7094]
[1727249245022,8.22,149.55,149.5,8.22]
[1727249245218,3.3438,149.53,149.51,8.22]
[1727249246422,3.3435,149.54,149.51,8.22]
[1727249246820,3.3433,149.55,149.53,8.22]
[1727249247325,8.22,149.57,149.53,8.22]
[1727249247523,3.343,149.56,149.53,8.22]
[1727249247918,3.3428,149.57,149.54,8.22]
[1727249249024,2.7596,149.61,149.54,8.22]
[1727249249421,8.22,149.59,149.54,8.22]
[1727249249821,3.3429,149.57,149.54,8.22]
[1727249253322,3.3426,149.58,149.55,8.22]
[1727249254728,3.3427,149.57,149.55,8.22]
[1727249256129,3.3427,149.57,149.54,8.22]
[1727249264629,2.7596,149.61,149.56,8.22]
[1727249264829,10.9796,149.61,149.56,8.22]
[1727249265128,9.6073,149.61,149.56,8.22]
[1727249265435,9.6073,149.61,149.49,63.72461029]
[1727249265436,8.22,149.63,149.57,8.22]
[1727249266736,3.342,149.6,149.57,8.22]
[1727249267139,8.22,149.61,149.57,8.22]
[1727249267337,3.3423,149.59,149.57,8.22]
[1727249271134,8.22,149.62,149.57,8.22]
[1727249271339,8.22,149.59,149.54,8.22]
[1727249271733,3.3427,149.58,149.54,8.22]
[1727249272240,8.22,149.59,149.54,8.22]
[1727249273244,3.3428,149.57,149.54,8.22]
[1727249273743,3.3428,149.57,149.54,11.5634]
[1727249273936,3.3428,149.57,149.56,8.22]
[1727249276844,3.3426,149.58,149.56,8.22]
[1727249277148,8.22,149.6,149.56,8.22]
[1727249278743,3.3426,149.58,149.56,8.22]
[1727249279347,3.3427,149.57,149.53,3.3435]
[1727249279547,3.3427,149.57,149.55,8.22]
[1727249281345,3.3424,149.59,149.55,8.22]
[1727249281545,3.3424,149.59,149.56,8.22]
[1727249281746,8.22,149.62,149.56,8.22]
[1727249282346,8.22,149.62,149.5,4.0244]
[1727249282545,8.22,149.6,149.55,8.22]
[1727249283457,3.3426,149.58,149.55,8.22]
[1727249283755,8.22,149.61,149.55,8.22]
[1727249284351,3.3423,149.59,149.55,8.22]
[1727249285047,3.3423,149.59,149.54,3.3432]
[1727249285048,3.3423,149.59,149.56,8.22]
[1727249286650,3.3421,149.6,149.58,8.22]
[1727249286849,8.22,149.63,149.58,8.22]
[1727249287260,3.3419,149.61,149.58,8.22]
[1727249290357,3.342,149.6,149.58,8.22]
[1727249290963,3.342,149.6,149.57,8.22]
[1727249291163,3.3423,149.59,149.57,8.22]
[1727249291557,3.3423,149.59,149.55,8.22]
[1727249292054,3.3426,149.58,149.55,8.22]
[1727249292254,8.22,149.6,149.53,3.3436]
[1727249292457,8.22,149.6,149.55,8.22]
[1727249292660,8.22,149.6,149.5,4.0244]
[1727249292661,3.3426,149.58,149.5,4.0244]
[1727249292860,3.3426,149.58,149.56,8.22]
[1727249293464,3.3426,149.58,149.5,4.0244]
[1727249293465,3.3423,149.59,149.57,8.22]
[1727249300368,8.22,149.62,149.57,8.22]
[1727249300675,3.3421,149.6,149.57,8.22]
[1727249307978,3.3421,149.6,149.56,3.3429]
[1727249308178,3.3421,149.6,149.57,8.22]
[1727249315270,3.3423,149.59,149.55,3.3431]
[1727249315471,3.3423,149.59,149.56,8.22]
[1727249316474,3.3423,149.59,149.57,8.22]
[1727249320380,3.3421,149.6,149.57,8.22]
[1727249324282,3.3423,149.59,149.57,8.22]
[1727249330287,3.3423,149.59,149.55,3.3431]
[1727249330492,3.3423,149.59,149.56,8.22]
[1727249331397,3.3423,149.59,149.56,11.5629]
[1727249332390,3.3423,149.59,149.57,8.22]
[1727249333090,3.3421,149.6,149.57,8.22]
[1727249333899,3.3421,149.6,149.57,11.5627]
[1727249334594,3.3418,149.61,149.58,8.22]
[1727249334800,26.91656396,149.62,149.58,8.22]
[1727249334998,13.75937117,149.62,149.58,8.22]
[1727249335192,3.3419,149.61,149.58,8.22]
[1727249336903,8.22,149.62,149.5,4.0244]
[1727249337103,8.22,149.62,149.56,8.22]
[1727249337301,35.12899897,149.62,149.56,8.22]
[1727249337503,3.3424,149.59,149.56,8.22]
[1727249338199,3.3425,149.58,149.56,8.22]
[1727249342808,3.3423,149.59,149.56,11.5629]
[1727249343213,3.3423,149.59,149.5,4.0244]
[1727249343214,13.14138776,149.62,149.5,4.0244]
[1727249343516,3.3419,149.61,149.6,8.22]
[1727249344111,3.3417,149.62,149.6,8.22]
[1727249344514,26.88255608,149.64,149.6,8.22]
[1727249344710,16.48206926,149.63,149.6,8.22]
[1727249344914,3.9892,149.71,149.62,8.22]
[1727249345118,8.22,149.69,149.64,8.22]
[1727249345318,3.3406,149.67,149.64,8.22]
[1727249347012,17.08451486,149.67,149.64,8.22]
[1727249347213,3.3406,149.67,149.64,8.22]
[1727249352112,3.3403,149.68,149.65,8.22]
[1727249352911,26.7454,149.8,149.67,8.22]
[1727249353114,8.22,149.74,149.69,8.22]
[1727249353317,8.22,149.72,149.67,8.22]
[1727249353919,3.3399,149.7,149.67,8.22]
[1727249354322,13.70228801,149.75,149.67,8.22]
[1727249354523,8.22,149.72,149.67,8.22]
[1727249355118,8.22,149.72,149.66,8.22]
[1727249355417,8.22,149.71,149.65,3.3408]
[1727249355619,8.22,149.71,149.65,11.5608]
[1727249355620,3.3399,149.7,149.65,11.5608]
[1727249356023,3.3399,149.7,149.67,8.22]
[1727249356826,3.3401,149.69,149.64,3.998]
[1727249357023,8.22,149.72,149.67,8.22]
[1727249357528,2.598,149.76,149.67,8.22]
[1727249357828,8.22,149.73,149.67,8.22]
[1727249358023,8.22,149.73,149.68,8.22]
[1727249358327,3.3398,149.71,149.68,8.22]
[1727249360027,3.3395,149.72,149.69,8.22]
[1727249364532,3.3394,149.72,149.69,8.22]
[1727249366635,3.3396,149.71,149.67,3.3403]
[1727249366835,3.3396,149.71,149.68,8.22]
[1727249367825,3.3394,149.72,149.68,8.22]
[1727249368030,3.3394,149.72,149.69,8.22]
[1727249370730,3.3396,149.71,149.69,8.22]
[1727249377232,3.3395,149.72,149.69,8.22]
[1727249377634,10.818,149.76,149.71,8.22]
[1727249377838,3.3392,149.73,149.71,8.22]
[1727249378236,2.598,149.76,149.68,3.3401]
[1727249378434,3.3393,149.73,149.71,8.22]
[1727249380235,3.3393,149.73,149.72,8.22]
[1727249381342,3.3393,149.73,149.71,8.22]
[1727249385746,3.339,149.74,149.72,8.22]
[1727249385946,3.339,149.74,149.73,8.22]
[1727249386441,3.3388,149.75,149.73,8.22]
[1727249387643,3.3388,149.75,149.74,8.22]
[1727249388345,3.3388,149.75,149.7,3.3397]
[1727249388747,3.3388,149.75,149.73,8.22]
[1727249388949,3.3389,149.74,149.72,8.22]
[1727249389147,8.22,149.76,149.72,8.22]
[1727249390343,3.3391,149.74,149.71,8.22]
[1727249391053,3.3391,149.74,149.72,8.22]
[1727249398963,3.3391,149.73,149.7,1.3398]
[1727249399165,3.3391,149.73,149.7,9.5598]
[1727249400265,3.339,149.74,149.72,8.22]
[1727249402771,3.339,149.74,149.7,1.3398]
[1727249402960,8.22,149.72,149.64,2.6974]
[1727249403162,4.0396,149.76,149.64,2.6974]
[1727249403365,8.22,149.69,149.64,1.3713]
[1727249403568,17.69901059,149.76,149.64,9.5913]
[1727249403769,8.22,149.7,149.64,9.5913]
[1727249404370,3.3404,149.68,149.64,9.5913]
[1727249404967,3.3404,149.68,149.63,67.01213063]
[1727249404968,3.3405,149.67,149.63,63.67083063]
[1727249405169,3.3405,149.67,149.64,8.22]
[1727249407379,8.22,149.65,149.61,1.281]
[1727249407575,8.22,149.65,149.6,88.4]
[1727249407778,8.22,149.65,149.6,8.22]
[1727249408076,20.07,149.74,149.6,8.22]
[1727249408275,20.07,149.74,149.53,16.97665608]
[1727249408276,8.22,149.69,149.64,8.22]
[1727249408473,3.3406,149.67,149.64,8.22]
[1727249408676,8.22,149.69,149.64,8.22]
[1727249409382,3.3404,149.68,149.64,8.22]
[1727249410680,3.3405,149.67,149.64,8.22]
[1727249411978,8.22,149.67,149.62,8.22]
[1727249412184,8.22,149.64,149.58,1.294]
[1727249412485,8.22,149.64,149.58,9.514]
[1727249413578,3.3418,149.62,149.58,1.294]
[1727249413778,8.22,149.61,149.54,11.47578814]
[1727249413975,8.22,149.61,149.53,15.66899523]
[1727249413976,8.22,149.61,149.55,7.17260316]
[1727249414175,3.3429,149.57,149.53,3.9302]
[1727249414377,8.22,149.6,149.55,8.22]
[1727249414585,8.22,149.6,149.56,8.22]
[1727249414785,8.22,149.61,149.56,8.22]
[1727249414983,13.69161219,149.66,149.56,8.22]
[1727249415184,8.22,149.63,149.57,8.22]
[1727249415582,3.342,149.61,149.57,8.22]
[1727249416277,8.22,149.61,149.56,8.22]
[1727249416477,8.22,149.59,149.53,3.9302]
[1727249416682,8.22,149.59,149.54,8.22]
[1727249416881,3.3426,149.58,149.54,8.22]
[1727249417583,3.3426,149.58,149.55,8.22]
[1727249417785,3.3423,149.59,149.55,8.22]
[1727249418087,10.8192,149.7,149.57,8.22]
[1727249418286,8.22,149.62,149.57,8.22]
[1727249418489,8.22,149.61,149.55,8.22]
[1727249418691,8.22,149.6,149.55,8.22]
[1727249418982,3.3426,149.58,149.55,8.22]
[1727249419381,3.3426,149.58,149.54,9.5614]
[1727249420982,3.3426,149.58,149.56,8.22]
[1727249421990,3.3423,149.59,149.56,8.22]
[1727249422492,8.22,149.62,149.57,8.22]
[1727249422995,3.342,149.61,149.57,8.22]
[1727249423687,3.3421,149.6,149.57,8.22]
[1727249424287,8.22,149.62,149.54,2.6319]
[1727249424288,3.3424,149.59,149.56,8.22]
[1727249426089,3.3424,149.59,149.55,3.3431]
[1727249426289,3.3424,149.59,149.56,8.22]
[1727249426590,3.3425,149.58,149.56,8.22]
[1727249426991,8.22,149.57,149.53,1.2918]
[1727249427395,11.5629,149.57,149.53,1.2918]
[1727249427797,11.5629,149.57,149.53,9.5118]
[1727249427798,3.3429,149.57,149.53,9.5118]
[1727249428295,3.3429,149.57,149.53,12.8554]
[1727249428799,20.05,149.67,149.55,8.22]
[1727249428996,8.22,149.6,149.55,8.22]
[1727249429196,8.22,149.61,149.56,8.22]
[1727249429392,3.3423,149.59,149.56,8.22]
[1727249430494,8.22,149.59,149.54,8.22]
[1727249431092,8.22,149.57,149.53,9.5118]
[1727249431300,8.22,149.57,149.53,8.22]
[1727249431498,8.22,149.58,149.53,11.5636]
[1727249432501,8.22,149.59,149.53,11.5636]
[1727249433194,3.3427,149.57,149.53,11.5636]
[1727249433394,8.22,149.57,149.53,8.22]
[1727249433596,8.22,149.57,149.49,2.5864]
[1727249433802,3.3433,149.55,149.51,8.22]
[1727249434196,3.3433,149.55,149.52,8.22]
[1727249435890,8.22,149.56,149.49,2.5864]
[1727249436095,8.22,149.56,149.5,8.22]
[1727249436503,8.22,149.56,149.51,8.22]
[1727249437795,3.3436,149.54,149.51,8.22]
[1727249438104,8.22,149.56,149.49,2.5864]
[1727249438105,8.22,149.56,149.49,5.9307]
[1727249438306,8.22,149.56,149.5,8.22]
[1727249438499,3.3435,149.54,149.5,8.22]
[1727249438701,11.5635,149.54,149.5,8.22]
[1727249439101,3.3436,149.53,149.5,8.22]
[1727249440098,11.5635,149.54,149.5,11.5642]
[1727249440405,3.3435,149.54,149.5,11.5642]
[1727249440605,8.22,149.57,149.51,8.22]
[1727249441200,8.22,149.56,149.51,8.22]
[1727249441705,3.3434,149.54,149.51,8.22]
[1727249444310,3.3434,149.54,149.5,11.564]
[1727249462136,8.22,149.57,149.53,8.22]
[1727249462634,8.22,149.57,149.53,11.5636]
[1727249462835,8.22,149.59,149.54,8.22]
[1727249463342,3.3427,149.57,149.54,8.22]
[1727249467235,3.3427,149.57,149.53,3.3434]
[1727249467441,3.3427,149.57,149.53,11.5634]
[1727249468244,3.3427,149.58,149.53,11.5636]
[1727249468441,97.95760294,149.63,149.55,8.22]
[1727249468642,8.22,149.61,149.55,8.22]
[1727249468941,97.95760294,149.63,149.55,8.22]
[1727249468942,11.5622,149.6,149.55,11.5631]
[1727249473246,3.3423,149.59,149.55,11.5631]